Workbook

Sheet Sheet1
A4: INSTRUCTIONS: Use this form when a single information collection document involves multiple reporting and recordkeeping requirements. The totals of the figures in cols. should be entered in item 13 of OMB-83-I: cols. (D) &/or (I) = 13a (respondent is only counted once); cols. F & I = 13b; cols. H & K = 13c. (F)Total/(D)Total = (E)Average (H)Total/(F)Total = (G)Average (K)Total/(I)Total = (J)Average NOTE: The columns will calculate automatically. If Col. E's response is something other than annually, i.e., 1/6 years, list as "1/6" & decimal will display. | I4: TITLE OF INFORMATION COLLECTION DOCUMENT | N4: OMB NO.
I6: Risk Management Education and Community Outreach Partnerships: Request for Applications | N6: 0563-0067
N9: DATE PREPARED
N11: 2012-07-02
A13: IDENTIFICATION OF REPORTING OR RECORDKEEPING REQUIREMENT | H13: ANNUAL BURDEN
H15: REPORTS | M15: RECORDS | P15: RESPONDENT COST
O17: TOTAL
G18: FORMS NO (S) | H18: NO. OF | I18: NO OF | J18: TOTAL ANNUAL | K18: HOURS | L18: TOTAL | M18: NO. OF | N18: ANNUAL | O18: RECORD- | P18: COST | Q18: TOTAL
A19: SECTION OF | B19: DESCRIPTION | G19: (If "none" | H19: RESPONDENTS | I19: RESPONSES | J19: RESPONSES | K19: PER | L19: HOURS | M19: RECORD- | N19: HOURS PER | O19: KEEPING HOURS | P19: PER | Q19: COST
A20: REGS. | G20: so state) | I20: PER | J20: (Col. D x E) | K20: RESPONSE | L20: (Col. F x G) | M20: KEEPERS | N20: RECORD- | O20: (Col. I x J) | P20: HOUR | Q20: (Col. H x L)
I21: RESPONDENT | N21: KEEPER
A22: (A) | B22: (B) | G22: (C) | H22: (D) | I22: (E) | J22: (F) | K22: (G) | L22: (H) | M22: (I) | N22: (J) | O22: (K) | P22: (L) | Q22: (M)
B23: Number of Applications Received (time to read RFA in Grants.gov) Education Partnerships | G23: None | H23: 220 | I23: 1.00 | J23: =SUM(H23*I23) -> 220.00 | K23: 0.75 | L23: =SUM(J23*K23) -> 165.00 | O23: =SUM(M23*N23) -> 0.00 | P23: $17.22 | Q23: =SUM(L23*P23) -> $2,841.30
B24: -Targeted States | G24: None | H24: 30 | I24: 1.00 | J24: 30.00 | K24: 0.75 | L24: 22.50
B25: Complete Narrative, SOW, Delivery Plan & Budget Education Partnerships | G25: None | H25: 220 | I25: 1.00 | J25: 220.00 | K25: 16.00 | L25: 3,520.00 | O25: 0.00 | P25: $20.53 | Q25: =SUM(L25*P25) -> $72,265.60
B26: - Targeted States | G26: None | H26: 30 | I26: 1.00 | J26: 30.00 | K26: 16.00 | L26: 480.00 | O26: 0.00 | P26: $17.22 | Q26: $8,265.60
B27: Certification Regarding Debarment, Suspension, & Other Responsibility Matters | G27: AD-1047 | H27: 250 | I27: 1.00 | J27: =SUM(H27*I27) -> 250.00 | K27: 0.25 | L27: =SUM(J27*K27) -> 62.50 | O27: =SUM(M27*N27) -> 0.00 | P27: $20.53 | Q27: =SUM(L27*P27) -> $1,283.13
B28: Certification Regarding Drug-Free Workplace Requirements (Grants) | G28: AD-1049 | H28: 250 | I28: 1.00 | J28: =SUM(H28*I28) -> 250.00 | K28: 0.25 | L28: =SUM(J28*K28) -> 62.50 | O28: =SUM(M28*N28) -> 0.00 | P28: $17.22 | Q28: =SUM(L28*P28) -> $1,076.25
B29: Subtotal | J29: =SUM(J23:J28) -> 1,000.00 | L29: =SUM(L23:L28) -> 4,312.50
B30: Forms and Burden Approved under other OMB Numbers | J30: 0.00 | L30: 0.00 | O30: 0.00 | P30: $20.53 | Q30: $0.00
B31: Application for Federal Assistance (4040-0004) | G31: SF-424 | H31: 250 | I31: 1.00 | J31: 250.00 | K31: 1.00 | L31: 250.00 | O31: 0.00 | P31: $17.22 | Q31: $4,305.00
B32: Budget Information - Non-Construction Programs (4040-0008) | G32: SF-424A | H32: 250 | I32: 1.00 | J32: 250.00 | K32: 3.00 | L32: 750.00 | O32: 0.00 | P32: $20.53 | Q32: $15,397.50
B33: Assurances - Non-Construction Programs (4040-0007) | G33: SF-424B | H33: 250 | I33: 1.00 | J33: 250.00 | K33: 0.25 | L33: 62.50 | O33: 0.00 | P33: $17.22 | Q33: $1,076.25
B34: Disclosure of Lobbying Activities (0348-0046) | G34: SF-LLL | H34: 250 | I34: 1.00 | J34: 250.00 | K34: 0.16 | L34: 40.00
B35: SUBTOTAL | J35: =SUM(J23:J28) -> 1,000.00 | L35: =SUM(L23:L28) -> 4,312.50 | M35: =SUM(M23:M34) -> 0.00 | O35: =SUM(O23:O34) -> 0.00 | Q35: =SUM(Q23:Q34) -> $106,510.63
B36: TOTAL OF ALL PAGES | J36: =SUM(J35+J66+J95+J124+J153+J182+J211+J240+J269+J298+J327+J356+J385+J414+J443+J472+J501+J530+J559+J588+J617+J646+J675+J704+J733+J762+J791+J820+J849+J878+J907+J936+J965+J994+J1023+J1052+J1081+J1110+J1139+J1168+J1197+J1226+J1255+J1284+J1313+J1342+J1371+J1400+J1429+J1458+J1487+J1516+J1545+J1574+J1603+J1632+J1661+J1690+J1719+J1748) -> 1,000.00 | L36: =SUM(L35) -> 4,312.50 | M36: =SUM(M35+M66+M95+M124+M153+M182+M211+M240+M269+M298+M327+M356+M385+M414+M443+M472+M501+M530+M559+M588+M617+M646+M675+M704+M733+M762+M791+M820+M849+M878+M907+M936+M965+M994+M1023+M1052+M1081+M1110+M1139+M1168+M1197+M1226+M1255+M1284+M1313+M1342+M1371+M1400+M1429+M1458+M1487+M1516+M1545+M1574+M1603+M1632+M1661+M1690+M1719+M1748) -> 0.00 | O36: =SUM(O35+O66+O95+O124+O153+O182+O211+O240+O269+O298+O327+O356+O385+O414+O443+O472+O501+O530+O559+O588+O617+O646+O675+O704+O733+O762+O791+O820+O849+O878+O907+O936+O965+O994+O1023+O1052+O1081+O1110+O1139+O1168+O1197+O1226+O1255+O1284+O1313+O1342+O1371+O1400+O1429+O1458+O1487+O1516+O1545+O1574+O1603+O1632+O1661+O1690+O1719+O1748) -> 0.00 | Q36: =SUM(Q35+Q66+Q95+Q124+Q153+Q182+Q211+Q240+Q269+Q298+Q327+Q356+Q385+Q414+Q443+Q472+Q501+Q530+Q559+Q588+Q617+Q646+Q675+Q704+Q733+Q762+Q791+Q820+Q849+Q878+Q907+Q936+Q965+Q994+Q1023+Q1052+Q1081+Q1110+Q1139+Q1168+Q1197+Q1226+Q1255+Q1284+Q1313+Q1342+Q1371+Q1400+Q1429+Q1458+Q1487+Q1516+Q1545+Q1574+Q1603+Q1632+Q1661+Q1690+Q1719+Q1748) -> $106,510.63
A37: TOTAL - COLUMNS "F" AND "I" = OMB 831, 13 b; COLUMNS "H" AND "K" = OMB 831, 13c | J37: =SUM(J36+M36) -> 1,000.00 | L37: =SUM(L36+O36) -> 4,312.50
A41: INSTRUCTIONS: Use this form when a single information collection document involves multiple reporting and recordkeeping requirements. The totals of the figures in cols. should be entered in item 13 of OMB-83-1: cols. (D) &/or (I) = 13a (respondent is only counted once); cols. F & I = 13b; cols. H & K = 13c. (F)Total/(D)Total = (E)Average (H)Total/(F)Total = (G)Average (K)Total/(I)Total = (J)Average NOTE: The columns will calculate automatically. If Col. E's response is something other than annually, i.e., 1/6 years, list as "1/6" & decimal will display. | I41: TITLE OF INFORMATION COLLECTION DOCUMENT | N41: OMB NO.
N43: 0581-
N46: DATE PREPARED
A50: IDENTIFICATION OF REPORTING OR RECORDKEEPING REQUIREMENT | H50: ANNUAL BURDEN
H52: REPORTS | M52: RECORDS | P52: RESPONDENT COST
O54: TOTAL
G55: FORMS NO (S) | H55: NO. OF | I55: NO OF | J55: TOTAL ANNUAL | K55: HOURS | L55: TOTAL | M55: NO. OF | N55: ANNUAL | O55: RECORD- | P55: COST | Q55: TOTAL
A56: SECTION OF | B56: DESCRIPTION | G56: (If "none" | H56: RESPONDENTS | I56: RESPONSES | J56: RESPONSES | K56: PER | L56: HOURS | M56: RECORD- | N56: HOURS PER | O56: KEEPING HOURS | P56: PER | Q56: COST
A57: REGS. | G57: so state) | I57: PER | J57: (Col. D x E) | K57: RESPONSE | L57: (Col. F x G) | M57: KEEPERS | N57: RECORD- | O57: (Col. I x J) | P57: HOUR | Q57: (Col. H x L)
I58: RESPONDENT | N58: KEEPER
A59: (A) | B59: (B) | G59: (C) | H59: (D) | I59: (E) | J59: (F) | K59: (G) | L59: (H) | M59: (I) | N59: (J) | O59: (K) | P59: (L) | Q59: (M)
J60: =SUM(H60*I60) -> 0.00 | L60: =SUM(J60*K60) -> 0.00 | O60: =SUM(M60*N60) -> 0.00 | Q60: =SUM(L60*P60) -> $0.00
J61: 0.00 | L61: 0.00 | O61: 0.00 | Q61: =SUM(L61*P61) -> $0.00
J62: 0.00 | L62: 0.00 | O62: 0.00 | Q62: $0.00
J63: 0.00 | L63: 0.00 | O63: 0.00 | Q63: $0.00
J64: 0.00 | L64: 0.00 | O64: 0.00 | Q64: $0.00
J65: 0.00 | L65: 0.00 | O65: 0.00 | Q65: $0.00
B66: SUBTOTAL | J66: =SUM(J60:J65) -> 0.00 | L66: =SUM(L60:L65) -> 0.00 | M66: =SUM(M60:M65) -> 0 | O66: =SUM(O60:O65) -> 0.00 | Q66: =SUM(Q60:Q65) -> 0.00
A70: INSTRUCTIONS: Use this form when a single information collection document involves multiple reporting and recordkeeping requirements. The totals of the figures in cols. should be entered in item 13 of OMB-83-1: cols. (D) &/or (I) = 13a (respondent is only counted once); cols. F & I = 13b; cols. H & K = 13c. (F)Total/(D)Total = (E)Average (H)Total/(F)Total = (G)Average (K)Total/(I)Total = (J)Average NOTE: The columns will calculate automatically. If Col. E's response is something other than annually, i.e., 1/6 years, list as "1/6" & decimal will display. | I70: TITLE OF INFORMATION COLLECTION DOCUMENT | N70: OMB NO.
N72: 0581-
N75: DATE PREPARED
A79: IDENTIFICATION OF REPORTING OR RECORDKEEPING REQUIREMENT | H79: ANNUAL BURDEN
H81: REPORTS | M81: RECORDS
O83: TOTAL
G84: FORMS NO (S) | H84: NO. OF | I84: NO OF | J84: TOTAL ANNUAL | K84: HOURS | L84: TOTAL | M84: NO. OF | N84: ANNUAL | O84: RECORD-
A85: SECTION OF | B85: DESCRIPTION | G85: (If "none" | H85: RESPONDENTS | I85: RESPONSES | J85: RESPONSES | K85: PER | L85: HOURS | M85: RECORD- | N85: HOURS PER | O85: KEEPING HOURS
A86: REGS. | G86: so state) | I86: PER | J86: (Col. D x E) | K86: RESPONSE | L86: (Col. F x G) | M86: KEEPERS | N86: RECORD- | O86: (Col. I x J)
I87: RESPONDENT | N87: KEEPER
A88: (A) | B88: (B) | G88: (C) | H88: (D) | I88: (E) | J88: (F) | K88: (G) | L88: (H) | M88: (I) | N88: (J) | O88: (K)
J89: =SUM(H89*I89) -> 0.00 | L89: =SUM(J89*K89) -> 0.00 | O89: =SUM(M89*N89) -> 0.00
J90: 0.00 | L90: 0.00 | O90: 0.00
J91: 0.00 | L91: 0.00 | O91: 0.00
J92: 0.00 | L92: 0.00 | O92: 0.00
J93: 0.00 | L93: 0.00 | O93: 0.00
J94: 0.00 | L94: 0.00 | O94: 0.00
B95: SUBTOTAL | J95: =SUM(J89:J94) -> 0.00 | L95: =SUM(L89:L94) -> 0.00 | M95: =SUM(M89:M94) -> 0 | O95: =SUM(O89:O94) -> 0.00
A99: INSTRUCTIONS: Use this form when a single information collection document involves multiple reporting and recordkeeping requirements. The totals of the figures in cols. should be entered in item 13 of OMB-83-1: cols. (D) &/or (I) = 13a (respondent is only counted once); cols. F & I = 13b; cols. H & K = 13c. (F)Total/(D)Total = (E)Average (H)Total/(F)Total = (G)Average (K)Total/(I)Total = (J)Average NOTE: The columns will calculate automatically. If Col. E's response is something other than annually, i.e., 1/6 years, list as "1/6" & decimal will display. | I99: TITLE OF INFORMATION COLLECTION DOCUMENT | N99: OMB NO.
N101: 0581-
N104: DATE PREPARED
A108: IDENTIFICATION OF REPORTING OR RECORDKEEPING REQUIREMENT | H108: ANNUAL BURDEN
H110: REPORTS | M110: RECORDS
O112: TOTAL
G113: FORMS NO (S) | H113: NO. OF | I113: NO OF | J113: TOTAL ANNUAL | K113: HOURS | L113: TOTAL | M113: NO. OF | N113: ANNUAL | O113: RECORD-
A114: SECTION OF | B114: DESCRIPTION | G114: (If "none" | H114: RESPONDENTS | I114: RESPONSES | J114: RESPONSES | K114: PER | L114: HOURS | M114: RECORD- | N114: HOURS PER | O114: KEEPING HOURS
A115: REGS. | G115: so state) | I115: PER | J115: (Col. D x E) | K115: RESPONSE | L115: (Col. F x G) | M115: KEEPERS | N115: RECORD- | O115: (Col. I x J)
I116: RESPONDENT | N116: KEEPER
A117: (A) | B117: (B) | G117: (C) | H117: (D) | I117: (E) | J117: (F) | K117: (G) | L117: (H) | M117: (I) | N117: (J) | O117: (K)
J118: =SUM(H118*I118) -> 0.00 | L118: =SUM(J118*K118) -> 0.00 | O118: =SUM(M118*N118) -> 0.00
J119: 0.00 | L119: 0.00 | O119: 0.00
J120: 0.00 | L120: 0.00 | O120: 0.00
J121: 0.00 | L121: 0.00 | O121: 0.00
J122: 0.00 | L122: 0.00 | O122: 0.00
J123: 0.00 | L123: 0.00 | O123: 0.00
B124: SUBTOTAL | J124: =SUM(J118:J123) -> 0.00 | L124: =SUM(L118:L123) -> 0.00 | M124: =SUM(M118:M123) -> 0 | O124: =SUM(O118:O123) -> 0.00
A128: INSTRUCTIONS: Use this form when a single information collection document involves multiple reporting and recordkeeping requirements. The totals of the figures in cols. should be entered in item 13 of OMB-83-1: cols. (D) &/or (I) = 13a (respondent is only counted once); cols. F & I = 13b; cols. H & K = 13c. (F)Total/(D)Total = (E)Average (H)Total/(F)Total = (G)Average (K)Total/(I)Total = (J)Average NOTE: The columns will calculate automatically. If Col. E's response is something other than annually, i.e., 1/6 years, list as "1/6" & decimal will display. | I128: TITLE OF INFORMATION COLLECTION DOCUMENT | N128: OMB NO.
N130: 0581-
N133: DATE PREPARED
A137: IDENTIFICATION OF REPORTING OR RECORDKEEPING REQUIREMENT | H137: ANNUAL BURDEN
H139: REPORTS | M139: RECORDS
O141: TOTAL
G142: FORMS NO (S) | H142: NO. OF | I142: NO OF | J142: TOTAL ANNUAL | K142: HOURS | L142: TOTAL | M142: NO. OF | N142: ANNUAL | O142: RECORD-
A143: SECTION OF | B143: DESCRIPTION | G143: (If "none" | H143: RESPONDENTS | I143: RESPONSES | J143: RESPONSES | K143: PER | L143: HOURS | M143: RECORD- | N143: HOURS PER | O143: KEEPING HOURS
A144: REGS. | G144: so state) | I144: PER | J144: (Col. D x E) | K144: RESPONSE | L144: (Col. F x G) | M144: KEEPERS | N144: RECORD- | O144: (Col. I x J)
I145: RESPONDENT | N145: KEEPER
A146: (A) | B146: (B) | G146: (C) | H146: (D) | I146: (E) | J146: (F) | K146: (G) | L146: (H) | M146: (I) | N146: (J) | O146: (K)
J147: =SUM(H147*I147) -> 0.00 | L147: =SUM(J147*K147) -> 0.00 | O147: =SUM(M147*N147) -> 0.00
J148: 0.00 | L148: 0.00 | O148: 0.00
J149: 0.00 | L149: 0.00 | O149: 0.00
J150: 0.00 | L150: 0.00 | O150: 0.00
J151: 0.00 | L151: 0.00 | O151: 0.00
J152: 0.00 | L152: 0.00 | O152: 0.00
B153: SUBTOTAL | J153: =SUM(J147:J152) -> 0.00 | L153: =SUM(L147:L152) -> 0.00 | M153: =SUM(M147:M152) -> 0 | O153: =SUM(O147:O152) -> 0.00
A157: INSTRUCTIONS: Use this form when a single information collection document involves multiple reporting and recordkeeping requirements. The totals of the figures in cols. should be entered in item 13 of OMB-83-1: cols. (D) &/or (I) = 13a (respondent is only counted once); cols. F & I = 13b; cols. H & K = 13c. (F)Total/(D)Total = (E)Average (H)Total/(F)Total = (G)Average (K)Total/(I)Total = (J)Average NOTE: The columns will calculate automatically. If Col. E's response is something other than annually, i.e., 1/6 years, list as "1/6" & decimal will display. | I157: TITLE OF INFORMATION COLLECTION DOCUMENT | N157: OMB NO.
N159: 0581-
N162: DATE PREPARED
A166: IDENTIFICATION OF REPORTING OR RECORDKEEPING REQUIREMENT | H166: ANNUAL BURDEN
H168: REPORTS | M168: RECORDS
O170: TOTAL
G171: FORMS NO (S) | H171: NO. OF | I171: NO OF | J171: TOTAL ANNUAL | K171: HOURS | L171: TOTAL | M171: NO. OF | N171: ANNUAL | O171: RECORD-
A172: SECTION OF | B172: DESCRIPTION | G172: (If "none" | H172: RESPONDENTS | I172: RESPONSES | J172: RESPONSES | K172: PER | L172: HOURS | M172: RECORD- | N172: HOURS PER | O172: KEEPING HOURS
A173: REGS. | G173: so state) | I173: PER | J173: (Col. D x E) | K173: RESPONSE | L173: (Col. F x G) | M173: KEEPERS | N173: RECORD- | O173: (Col. I x J)
I174: RESPONDENT | N174: KEEPER
A175: (A) | B175: (B) | G175: (C) | H175: (D) | I175: (E) | J175: (F) | K175: (G) | L175: (H) | M175: (I) | N175: (J) | O175: (K)
J176: =SUM(H176*I176) -> 0.00 | L176: =SUM(J176*K176) -> 0.00 | O176: =SUM(M176*N176) -> 0.00
J177: 0.00 | L177: 0.00 | O177: 0.00
J178: 0.00 | L178: 0.00 | O178: 0.00
J179: 0.00 | L179: 0.00 | O179: 0.00
J180: 0.00 | L180: 0.00 | O180: 0.00
J181: 0.00 | L181: 0.00 | O181: 0.00
B182: SUBTOTAL | J182: =SUM(J176:J181) -> 0.00 | L182: =SUM(L176:L181) -> 0.00 | M182: =SUM(M176:M181) -> 0 | O182: =SUM(O176:O181) -> 0.00
A186: INSTRUCTIONS: Use this form when a single information collection document involves multiple reporting and recordkeeping requirements. The totals of the figures in cols. should be entered in item 13 of OMB-83-1: cols. (D) &/or (I) = 13a (respondent is only counted once); cols. F & I = 13b; cols. H & K = 13c. (F)Total/(D)Total = (E)Average (H)Total/(F)Total = (G)Average (K)Total/(I)Total = (J)Average NOTE: The columns will calculate automatically. If Col. E's response is something other than annually, i.e., 1/6 years, list as "1/6" & decimal will display. | I186: TITLE OF INFORMATION COLLECTION DOCUMENT | N186: OMB NO.
N188: 0581-
N191: DATE PREPARED
A195: IDENTIFICATION OF REPORTING OR RECORDKEEPING REQUIREMENT | H195: ANNUAL BURDEN
H197: REPORTS | M197: RECORDS
O199: TOTAL
G200: FORMS NO (S) | H200: NO. OF | I200: NO OF | J200: TOTAL ANNUAL | K200: HOURS | L200: TOTAL | M200: NO. OF | N200: ANNUAL | O200: RECORD-
A201: SECTION OF | B201: DESCRIPTION | G201: (If "none" | H201: RESPONDENTS | I201: RESPONSES | J201: RESPONSES | K201: PER | L201: HOURS | M201: RECORD- | N201: HOURS PER | O201: KEEPING HOURS
A202: REGS. | G202: so state) | I202: PER | J202: (Col. D x E) | K202: RESPONSE | L202: (Col. F x G) | M202: KEEPERS | N202: RECORD- | O202: (Col. I x J)
I203: RESPONDENT | N203: KEEPER
A204: (A) | B204: (B) | G204: (C) | H204: (D) | I204: (E) | J204: (F) | K204: (G) | L204: (H) | M204: (I) | N204: (J) | O204: (K)
J205: =SUM(H205*I205) -> 0.00 | L205: =SUM(J205*K205) -> 0.00 | O205: =SUM(M205*N205) -> 0.00
J206: 0.00 | L206: 0.00 | O206: 0.00
J207: 0.00 | L207: 0.00 | O207: 0.00
J208: 0.00 | L208: 0.00 | O208: 0.00
J209: 0.00 | L209: 0.00 | O209: 0.00
J210: 0.00 | L210: 0.00 | O210: 0.00
B211: SUBTOTAL | J211: =SUM(J205:J210) -> 0.00 | L211: =SUM(L205:L210) -> 0.00 | M211: =SUM(M205:M210) -> 0 | O211: =SUM(O205:O210) -> 0.00
A215: INSTRUCTIONS: Use this form when a single information collection document involves multiple reporting and recordkeeping requirements. The totals of the figures in cols. should be entered in item 13 of OMB-83-1: cols. (D) &/or (I) = 13a (respondent is only counted once); cols. F & I = 13b; cols. H & K = 13c. (F)Total/(D)Total = (E)Average (H)Total/(F)Total = (G)Average (K)Total/(I)Total = (J)Average NOTE: The columns will calculate automatically. If Col. E's response is something other than annually, i.e., 1/6 years, list as "1/6" & decimal will display. | I215: TITLE OF INFORMATION COLLECTION DOCUMENT | N215: OMB NO.
N217: 0581-
N220: DATE PREPARED
A224: IDENTIFICATION OF REPORTING OR RECORDKEEPING REQUIREMENT | H224: ANNUAL BURDEN
H226: REPORTS | M226: RECORDS
O228: TOTAL
G229: FORMS NO (S) | H229: NO. OF | I229: NO OF | J229: TOTAL ANNUAL | K229: HOURS | L229: TOTAL | M229: NO. OF | N229: ANNUAL | O229: RECORD-
A230: SECTION OF | B230: DESCRIPTION | G230: (If "none" | H230: RESPONDENTS | I230: RESPONSES | J230: RESPONSES | K230: PER | L230: HOURS | M230: RECORD- | N230: HOURS PER | O230: KEEPING HOURS
A231: REGS. | G231: so state) | I231: PER | J231: (Col. D x E) | K231: RESPONSE | L231: (Col. F x G) | M231: KEEPERS | N231: RECORD- | O231: (Col. I x J)
I232: RESPONDENT | N232: KEEPER
A233: (A) | B233: (B) | G233: (C) | H233: (D) | I233: (E) | J233: (F) | K233: (G) | L233: (H) | M233: (I) | N233: (J) | O233: (K)
J234: =SUM(H234*I234) -> 0.00 | L234: =SUM(J234*K234) -> 0.00 | O234: =SUM(M234*N234) -> 0.00
J235: 0.00 | L235: 0.00 | O235: 0.00
J236: 0.00 | L236: 0.00 | O236: 0.00
J237: 0.00 | L237: 0.00 | O237: 0.00
J238: 0.00 | L238: 0.00 | O238: 0.00
J239: 0.00 | L239: 0.00 | O239: 0.00
B240: SUBTOTAL | J240: =SUM(J234:J239) -> 0.00 | L240: =SUM(L234:L239) -> 0.00 | M240: =SUM(M234:M239) -> 0 | O240: =SUM(O234:O239) -> 0.00
A244: INSTRUCTIONS: Use this form when a single information collection document involves multiple reporting and recordkeeping requirements. The totals of the figures in cols. should be entered in item 13 of OMB-83-1: cols. (D) &/or (I) = 13a (respondent is only counted once); cols. F & I = 13b; cols. H & K = 13c. (F)Total/(D)Total = (E)Average (H)Total/(F)Total = (G)Average (K)Total/(I)Total = (J)Average NOTE: The columns will calculate automatically. If Col. E's response is something other than annually, i.e., 1/6 years, list as "1/6" & decimal will display. | I244: TITLE OF INFORMATION COLLECTION DOCUMENT | N244: OMB NO.
N246: 0581-
N249: DATE PREPARED
A253: IDENTIFICATION OF REPORTING OR RECORDKEEPING REQUIREMENT | H253: ANNUAL BURDEN
H255: REPORTS | M255: RECORDS
O257: TOTAL
G258: FORMS NO (S) | H258: NO. OF | I258: NO OF | J258: TOTAL ANNUAL | K258: HOURS | L258: TOTAL | M258: NO. OF | N258: ANNUAL | O258: RECORD-
A259: SECTION OF | B259: DESCRIPTION | G259: (If "none" | H259: RESPONDENTS | I259: RESPONSES | J259: RESPONSES | K259: PER | L259: HOURS | M259: RECORD- | N259: HOURS PER | O259: KEEPING HOURS
A260: REGS. | G260: so state) | I260: PER | J260: (Col. D x E) | K260: RESPONSE | L260: (Col. F x G) | M260: KEEPERS | N260: RECORD- | O260: (Col. I x J)
I261: RESPONDENT | N261: KEEPER
A262: (A) | B262: (B) | G262: (C) | H262: (D) | I262: (E) | J262: (F) | K262: (G) | L262: (H) | M262: (I) | N262: (J) | O262: (K)
J263: =SUM(H263*I263) -> 0.00 | L263: =SUM(J263*K263) -> 0.00 | O263: =SUM(M263*N263) -> 0.00
J264: 0.00 | L264: 0.00 | O264: 0.00
J265: 0.00 | L265: 0.00 | O265: 0.00
J266: 0.00 | L266: 0.00 | O266: 0.00
J267: 0.00 | L267: 0.00 | O267: 0.00
J268: 0.00 | L268: 0.00 | O268: 0.00
B269: SUBTOTAL | J269: =SUM(J263:J268) -> 0.00 | L269: =SUM(L263:L268) -> 0.00 | M269: =SUM(M263:M268) -> 0 | O269: =SUM(O263:O268) -> 0.00
A273: INSTRUCTIONS: Use this form when a single information collection document involves multiple reporting and recordkeeping requirements. The totals of the figures in cols. should be entered in item 13 of OMB-83-1: cols. (D) &/or (I) = 13a (respondent is only counted once); cols. F & I = 13b; cols. H & K = 13c. (F)Total/(D)Total = (E)Average (H)Total/(F)Total = (G)Average (K)Total/(I)Total = (J)Average NOTE: The columns will calculate automatically. If Col. E's response is something other than annually, i.e., 1/6 years, list as "1/6" & decimal will display. | I273: TITLE OF INFORMATION COLLECTION DOCUMENT | N273: OMB NO.
N275: 0581-
N278: DATE PREPARED
A282: IDENTIFICATION OF REPORTING OR RECORDKEEPING REQUIREMENT | H282: ANNUAL BURDEN
H284: REPORTS | M284: RECORDS
O286: TOTAL
G287: FORMS NO (S) | H287: NO. OF | I287: NO OF | J287: TOTAL ANNUAL | K287: HOURS | L287: TOTAL | M287: NO. OF | N287: ANNUAL | O287: RECORD-
A288: SECTION OF | B288: DESCRIPTION | G288: (If "none" | H288: RESPONDENTS | I288: RESPONSES | J288: RESPONSES | K288: PER | L288: HOURS | M288: RECORD- | N288: HOURS PER | O288: KEEPING HOURS
A289: REGS. | G289: so state) | I289: PER | J289: (Col. D x E) | K289: RESPONSE | L289: (Col. F x G) | M289: KEEPERS | N289: RECORD- | O289: (Col. I x J)
I290: RESPONDENT | N290: KEEPER
A291: (A) | B291: (B) | G291: (C) | H291: (D) | I291: (E) | J291: (F) | K291: (G) | L291: (H) | M291: (I) | N291: (J) | O291: (K)
J292: =SUM(H292*I292) -> 0.00 | L292: =SUM(J292*K292) -> 0.00 | O292: =SUM(M292*N292) -> 0.00
J293: 0.00 | L293: 0.00 | O293: 0.00
J294: 0.00 | L294: 0.00 | O294: 0.00
J295: 0.00 | L295: 0.00 | O295: 0.00
J296: 0.00 | L296: 0.00 | O296: 0.00
J297: 0.00 | L297: 0.00 | O297: 0.00
B298: SUBTOTAL | J298: =SUM(J292:J297) -> 0.00 | L298: =SUM(L292:L297) -> 0.00 | M298: =SUM(M292:M297) -> 0 | O298: =SUM(O292:O297) -> 0.00
A302: INSTRUCTIONS: Use this form when a single information collection document involves multiple reporting and recordkeeping requirements. The totals of the figures in cols. should be entered in item 13 of OMB-83-1: cols. (D) &/or (I) = 13a (respondent is only counted once); cols. F & I = 13b; cols. H & K = 13c. (F)Total/(D)Total = (E)Average (H)Total/(F)Total = (G)Average (K)Total/(I)Total = (J)Average NOTE: The columns will calculate automatically. If Col. E's response is something other than annually, i.e., 1/6 years, list as "1/6" & decimal will display. | I302: TITLE OF INFORMATION COLLECTION DOCUMENT | N302: OMB NO.
N304: 0581-
N307: DATE PREPARED
A311: IDENTIFICATION OF REPORTING OR RECORDKEEPING REQUIREMENT | H311: ANNUAL BURDEN
H313: REPORTS | M313: RECORDS
O315: TOTAL
G316: FORMS NO (S) | H316: NO. OF | I316: NO OF | J316: TOTAL ANNUAL | K316: HOURS | L316: TOTAL | M316: NO. OF | N316: ANNUAL | O316: RECORD-
A317: SECTION OF | B317: DESCRIPTION | G317: (If "none" | H317: RESPONDENTS | I317: RESPONSES | J317: RESPONSES | K317: PER | L317: HOURS | M317: RECORD- | N317: HOURS PER | O317: KEEPING HOURS
A318: REGS. | G318: so state) | I318: PER | J318: (Col. D x E) | K318: RESPONSE | L318: (Col. F x G) | M318: KEEPERS | N318: RECORD- | O318: (Col. I x J)
I319: RESPONDENT | N319: KEEPER
A320: (A) | B320: (B) | G320: (C) | H320: (D) | I320: (E) | J320: (F) | K320: (G) | L320: (H) | M320: (I) | N320: (J) | O320: (K)
... 889 more rows
